Cogmind - Beta 9.4 @@@ ROGUE MODE // 2020.01.14 @ 01:51:36 // Halloween2019/Abominations Player: Hermelin Result: Destroyed by Explosive Trap Performance ------------- Evolutions (0) 0 Regions Visited (1) 200 Robots Destroyed (1) 5 Value Destroyed (63) 63 Prototype IDs (2) 40 Alien Tech Used (0) 0 Bonus (0) 0 TOTAL SCORE: 308 Bonus ------- None Cogmind --------- Core Integrity 0/250 Matter 249/300 Energy 123/125 System Corruption 0% Temperature Cool (0) Movement Core (50) Location -10/Materials Parts ------- > --- POWER (1) -------- Light Ion Engine > --- PROPULSION (2) --- (None) > --- UTILITY (2) ------ (None) > --- WEAPON (2) ------- (None) > --- INVENTORY (4) ---- Light Ion Engine Small Storage Unit Light Cannon Peak State ------------ > --- POWER ------------ Light Ion Engine > --- PROPULSION ------- Wheel Compact Wheel > --- UTILITY ---------- Small Storage Unit > --- WEAPON ----------- Assault Rifle Light Assault Rifle > --- INVENTORY -------- (None) [Rating: 6] Favorites ----------- Power Light Ion Engine Engine Light Ion Engine Propulsion Compact Wheel Leg Aluminum Leg Wheel Compact Wheel Utility Small Storage Unit Storage Small Storage Unit Weapon Assault Rifle Ballistic Gun Assault Rifle Ballistic Cannon Light Cannon Build | -11 -10 ------- Run | Scr Mat Slots Evolved . | . . Power . | . . Propulsion . | . . Utility . | . . Weapon . | . . Parts Attached 11 | 10 1 Power 1 | 1 . Engine 1 | 1 . Core . | . . Reactor . | . . Propulsion 4 | 4 . Treads . | . . Leg 2 | 2 . Wheel 2 | 2 . Hover . | . . Flight . | . . Utility 2 | 2 . Device . | . . Storage 2 | 2 . Processor . | . . Hackware . | . . Protection . | . . Artifact . | . . Weapon 4 | 3 1 Energy Gun . | . . Energy Cannon . | . . Ballistic Gun 3 | 3 . Ballistic Cannon 1 | . 1 Launcher . | . . Special Weapon . | . . Impact Weapon . | . . Slashing Weapon . | . . Piercing Weapon . | . . Special Melee Weapon . | . . Unidentified Prototypes . | . . Parts Lost 7 | 4 3 Power . | . . Propulsion 4 | 2 2 Utility . | . . Weapon 3 | 2 1 Highest Loss Streak 3 | 2 3 Average Slot Usage (%) 62 | . 62 Engine 14 | . 14 Leg 18 | . 18 Storage 11 | . 11 Ballistic Gun 7 | . 7 Ballistic Cannon 9 | . 9 Naked Turns . | . . Heaviest Build 13 | 13 12 Greatest Support 26 | 26 20 Greatest Overweight (x) 4 | 4 3 Average Overweight (x) . | . . Largest Inventory Capacity 8 | 8 6 Average Capacity 6 | 6 5 Most Carried 4 | 4 3 Average Carried 3 | 3 1 Final Capacity 6 | 6 4 Final Carried 3 | 1 3 Class Distribution -------------------- 100% | Mutant Dominant Class ---------------- Mutant | -10/Materials Resources | -11 -10 ----------- Run | Scr Mat Matter Collected 301 | 297 4 Remotely . | . . Salvage Created . | . . Parts . | . . Haulers Intercepted . | . . Recyclers Shooed . | . . Parts Field Recycled . | . . Retrieved Matter . | . . Parts Self-Destructed . | . . Prevented . | . . Kills | -11 -10 ------- Run | Scr Mat Combat Hostiles Destroyed 1 | 1 . Guns 1 | 1 . Classes Destroyed 1 | 1 . Demolisher 1 | 1 . Best Kill Streak 1 | 1 . Combat Bots Only 1 | 1 . Max Kills in Single Turn 1 | 1 . Gunslinging . | . . Exploded . | . . Melee . | . . Uniques/NPCs Destroyed . | . . Combat | -11 -10 -------- Run | Scr Mat Damage Taken 968 | 629 339 Core 254 | 165 89 Absorbed by Shields . | . . Core Remaining (%) 34 | 34 . Volleys Fired 16 | 9 7 Largest 2 | 2 2 Hottest 55 | 40 55 Shots Fired 23 | 12 11 Gun 16 | 12 4 Cannon 7 | . 7 Launcher . | . . Special . | . . Kinetic 23 | 12 11 Thermal . | . . Explosive . | . . Electromagnetic . | . . Robot Hit Streak 3 | 2 3 Robot Miss Streak 4 | 4 4 Penetration Max . | . . Secondary Targets . | . . Shots Hit Robots 11 | 5 6 Core Hits 3 | 2 1 Critical Hits . | . . Critical Kills . | . . Critical Parts Destroyed . | . . Melee Attacks . | . . Impact . | . . Slashing . | . . Piercing . | . . Sneak Attacks . | . . Combat Hostiles . | . . Follow-up Attacks . | . . Damage Inflicted 136 | 51 85 Guns 62 | 51 11 Cannons 74 | . 74 Explosions . | . . Melee . | . . Ramming . | . . Kinetic 136 | 51 85 Thermal . | . . Explosive . | . . Electromagnetic . | . . Impact . | . . Slashing . | . . Piercing . | . . Highest Corruption . | . . Average Corruption . | . . Corruption Purged . | . . Overload Shots . | . . Overflow Damage . | . . Projectiles . | . . Explosions . | . . Melee . | . . Knockbacks 1 | . 1 Impact . | . . Kinetic 1 | . 1 Secondary . | . . Self-Inflicted Damage . | . . Shots . | . . Rammed . | . . Targets Rammed . | . . Kicked . | . . Crushed . | . . Highest Temperature 18 | 2 18 Average Temperature 9 | 2 10 Received Heat Transfer 181 | 100 81 Siege Activations . | . . Robots Corrupted . | . . Combat Hostiles . | . . Parts Fried . | . . Impact Corruptions . | . . Robots Melted . | . . Combat Hostiles . | . . Parts Melted . | . . Heat Transferred . | . . Parts Sabotaged . | . . Parts Stolen . | . . Parts Stripped . | . . Power Chain Reactions . | . . Missiles Intercepted . | . . Alert | -11 -10 ------- Run | Scr Mat Peak Influence 25 | 20 25 Average Influence . | . 7 Maximum Alert Level . | . . Low Security (%) 100 | 100 100 Level 1 . | . . Level 2 . | . . Level 3 . | . . Level 4 . | . . Level 5 . | . . High Security . | . . Max Security . | . . Squads Dispatched 1 | . 1 Investigation . | . . Extermination . | . . Reinforcement 1 | . 1 Assault . | . . Garrison . | . . Intercept . | . . Construction Impeded . | . . Haulers Reinforced . | . . Stealth | -11 -10 --------- Run | Scr Mat Distress Signals . | . . Communications Jammed . | . . Distress Signals . | . . Times Spotted 11 | 8 3 Peak Tracking Total 3 | 3 2 Tactical Retreats 3 | 3 . Traps | -11 -10 ------- Run | Scr Mat Traps Triggered 1 | . 1 Indirectly . | . . Trap Hack Attempts . | . . Triggered . | . . Disarmed . | . . Reprogrammed . | . . Reused . | . . Traps Extracted . | . . Installed . | . . Triggered . | . . Machines | -11 -10 ---------- Run | Scr Mat Machines Disabled 1 | . 1 Max in Single Turn 1 | . 1 Machines Sabotaged . | . . Garrisons Compromised . | . . Overloaded Fab Kills . | . . Fab Network Shutdowns . | . . Hacking | -11 -10 --------- Run | Scr Mat Machines Accessed 1 | . 1 Terminals 1 | . 1 Fabricators . | . . Repair Stations . | . . Recycling Units . | . . Scanalyzers . | . . Garrison Access . | . . Total Hacks 8 | . 8 Successful 5 | . 5 Failed 3 | . 3 Catastrophic . | . . Database Lockouts . | . . Manual 5 | . 5 Terminals 8 | . 8 Fabricators . | . . Repair Stations . | . . Recycling Units . | . . Scanalyzers . | . . Garrison Access . | . . Terminal Hacks 5 | . 5 Prototype ID Bank 1 | . 1 Terminal Index 1 | . 1 Alert Level 1 | . 1 Locate Traps 1 | . 1 Hauler Manifests 1 | . 1 Fabricator Hacks . | . . Repair Station Hacks . | . . Recycling Unit Hacks . | . . Scanalyzer . | . . Garrison Access Hacks . | . . Unauthorized Hacks . | . . Terminals . | . . Fabricators . | . . Repair Stations . | . . Recycling Units . | . . Scanalyzers . | . . Garrison Access . | . . Data Cores Recovered . | . . Used . | . . Hacking Detections 1 | . 1 Full Trace Events 1 | . 1 Feedback Events . | . . Feedback Blocked . | . . Robot Schematics Acquired . | . . Robots Built . | . . Matter . | . . Time . | . . Total Robot Build Rating . | . . Part Schematics Acquired . | . . Parts Built . | . . Matter . | . . Time . | . . Total Part Build Rating . | . . Parts Repaired . | . . Time . | . . Parts Recycled . | . . Recycled Matter . | . . Retrieved Matter . | . . Retrieved Components . | . . Parts Scanalyzed . | . . Part Schematics Acquired . | . . Parts Damaged . | . . Bothacking | -11 -10 ------------ Run | Scr Mat Used RIF Installer . | . . Robots Hacked . | . . Non-combat . | . . Combat . | . . Robot Hacks Applied . | . . Relay Couplers Released . | . . Robots Rewired . | . . Allies Hacked . | . . Hacks Repelled . | . . Allies | -11 -10 -------- Run | Scr Mat Total Allies . | . . Largest Group . | . . Highest-Rated Group . | . . Highest-Rated Ally . | . . Total Orders . | . . Ally Attacks . | . . Total Damage . | . . Kills . | . . Allies Corrupted . | . . Allies Melted . | . . Intel | -11 -10 ------- Run | Scr Mat Robot Analysis Total . | . . Derelict Logs Recovered . | . . Drone Launches . | . . Drone Recoveries . | . . Exploration | -11 -10 ------------- Run | Scr Mat Turns Passed 2690 | 2565 125 Spaces Moved 407 | 310 97 Core 47 | 3 44 Treads . | . . Legs 72 | 19 53 Wheels 288 | 288 . Hover . | . . Flight . | . . Fastest Speed 50 | 50 50 Average Speed 95 | 92 103 Slowest Speed 250 | 250 200 Overloaded Moves . | . . Propulsion Burnouts . | . . Robots Hopped . | . . Cave-ins Triggered . | . . Exploration Rate (%) 36 | 47 26 Regions Visited 1 Branch Regions . Pre-discovered Areas . | . . Known Exits Taken . | . . Unknown Exits Taken 1 | 1 . Scrap Searched . | . . Spaces Dug . | . . Terrain Destroyed . | . . Melee . | . . Projectile . | . . AOE . | . . Actions | -11 -10 --------- Run | Scr Mat Total 2684 | 2573 111 Wait 2244 | 2240 4 Move 406 | 309 97 Hop . | . . Pick Up 4 | 4 . Fast Attach 8 | 7 1 Attach 3 | 3 . Detach 2 | . 2 Swap . | . . Drop 1 | 1 . Fire 16 | 9 7 Melee . | . . Ram . | . . Kick . | . . Crush . | . . Escape Stasis . | . . Rewire . | . . Trap . | . . Miscellaneous . | . . Route ------- -11/Scrapyard -10/Materials History --------- Turn | Location | Event 12 | -11/Scrapyard | Discovered new exit (range 14) 2292 | -11/Scrapyard | Assembled infested the area 2543 | -11/Scrapyard | Core integrity fell below 50% 2566 | -11/Scrapyard | Entered Materials 2567 | -10/Materials | Build established: Mutant 2648 | -10/Materials | Core integrity fell below 20% 2684 | -10/Materials | Lost 3 parts (2n1w) 2690 | -10/Materials | Discovered new exit (range 7) 2691 | -10/Materials | Destroyed by Explosive Trap Last Messages --------------- 02596_ Minor Abomination absorbs Signal Interpreter, Terrain Scanner. 02601_ Terminal disabled. 02633_ Lesser Abomination absorbs Wheel. 02634_ Material Compactor disabled. 02637_ Minor Abomination knocked back. 02639_ Assault Rifle destroyed. 02647_ Aluminum Leg destroyed. 02653_ Lesser Abomination destroyed. 02657_ The unstable cave ceiling collapses. 02659_ K-01 Serf collects debris. 02660_ The unstable cave ceiling collapses. 02661_ R-06 Scavenger collects Terrain Scanner. 02662_ K-01 Serf collects debris. 02672_ Acquired 2 matter. 02674_ K-01 Serf collects debris. 02676_ Acquired 2 matter. 02678_ K-01 Serf collects debris. 02690_ EXIT=FOUND (Blocked) 02691_ Triggered Explosive Trap. 02691_ An explosion rips through the floor. Map ----- +----------------------------------------------------+ | | | | | | | | | | | | | | | | | | | ??????????????????????????????????? | | ??????????????????????????????????? | | ??????????????????????????????????? | | ??????????????????????????????????? | | ??????????????????????????????????? | | ??????????????????????????????????? | | ???????????????????????#####??????? | | ??????????????????????##"""##?????? | | ?????????????????????##"|||"##????? | | ?????????????????????#"" ""#????? | | ?????????????????????# #????? | | ?????????????????????# < #????? | | ?????????????????????# #????? | | ?????????????????????# #????? | | ??????????????????????# #?????? | | ?????????????#######???# #??????? | | ?????????????# ##### @ #??????? | | ?????????????# +??????? | | ?????????????# #??????? | | ?????????????# #??????? | | ?????????????# #########??????? | | ??############# ##??????????????? | | ??# # ####????????????? | | ?????""""" + !!##???????????? | | ?????"""""""" # !#???????????? | | ??????"" """ # !#???????????? | | ?????? # !#???????????? | | ??????? # !#???????????? | | ?????? # !!##???????????? | | ??????####+#### ####????????????? | | ?????????# ??## ##??????????????? | | ????????## ### #??????????????? | | ###### #??????????????? | | #??##??????????? | | ###### #?? ??????????? | | ????????###### ##? #??????????? | | ?????######### #? #??????????? | | ?????+ #? #??????????? | | ?????# "" "" ## #?###+##???? | | ?????# " "" ## ## #??? | | ?????# # # """ ???? | +----------------------------------------------------+ Best States ------------- Heat Dissipation 25 Energy Generation 10 Energy Capacity 125 Matter Stores 300 Matter Capacity 300 Sight Range 16 Terrain Scan Density 10 Evasion (%) 50 Item Schematics ----------------- None Robot Schematics ------------------ None Fabricated ------------ Nothing Alien Tech Used ----------------- None Achievements -------------- None Challenges ------------ None Game ------ Seed ImpactFocalFrame Manual? 0 Play Time 00:13:46 Cumulative 17.9 hours Start 2020.01.14 @ 01:39:45 End 2020.01.14 @ 01:51:36 Sessions 1 Manual Loads 0 Difficulty Rogue Special Mode Halloween2019/Abominations Game No. 9 Rogue 9 Adventurer 0 Explorer 0 Win Type - Total 0 Types 0/0/0/0/0/0/0 Lore% 40 Gallery% 19 Achievement% 32 Wizard Run 0 Options --------- ASCII 0 Keyboard 0 Movement Numpad Keybinds 0 Fullscreen 1 Font 14/SmallcapsGlow Map View 84x54 Tactical HUD 1 Map Filters NONE Filters NONE Steam 1 RUN: fe4bd76d-9e3a-4f0d-b320-5095ddfe8e75